{"text_format":"1","workbook":"xlsx","n_sheets":12,"sheets":["Capa","Dados Gerais","Carga","Dados de Entrada","Backup","Detalhes Construtivos","Tab Normas","Tabela Detalhes","Tabela","Instruções","Formulário","Projeto"],"not_rendered":{"charts":0,"images":22,"macros":1,"external_links":0,"defined_names":6,"comments":1,"pivot_tables":0},"unopened":[],"bounds":{"document_bytes":16777216,"sheet_cells":100000,"rows_first":2000,"rows_last":500,"rows_between":2000,"halvings":0,"cell_chars":16384,"cell_head_chars":4096},"cells_cut":0,"cells_raw":0,"read":"whole","date_system":"1900"}

{"sheet":"Capa","index":0,"n_rows":38,"n_cols":11,"rows_kept":38,"cut":false,"hidden":false,"merged":[[7,2,10,9],[1,5,1,10],[35,10,36,10],[37,8,37,9],[35,7,36,7],[35,8,36,9],[12,2,15,8],[17,2,18,8],[20,2,21,6],[36,2,36,6],[37,7,38,7]]}
[]
[null,null,null,null,null,"Subestações Aéreas para Redes de Distribuição de até 34,5 kV\n(Posto Transformador Simplificado)"]
[]
[]
[null,null,"Olá,"]
[null,null,"Boas vindas!"]
[]
[null,null,"Esse é um formulário desenvolvido pela NEOENERGIA para simplificar a apresentação de projetos de Subestações Aéreas para redes de distribuição de até 34,5 kV baseado na versão vigente da norma DIS-NOR-036."]
[]
[]
[]
[]
[null,null,"Navegue pelo formulário preenchendo as informações solicitadas e ao final, um resumo das instalações será apresentado."]
[]
[]
[]
[]
[null,null,"O processo é simples e rápido!"]
[]
[]
[null,null,"Vamos iniciar o preenchimento?"]
[]
[]
[]
[]
[]
[]
[]
[]
[]
[]
[]
[]
[]
[]
[null,null,null,null,null,null,null,"Criado por:","Danilo Santos\nMarcelo Moraes",null,"Ver. 3.0"]
[null,null,"Compatível com Excel 2013 e versões superiores"]
[null,null,null,null,null,null,null,"Revisado por:","Normalização de Redes"]

{"sheet":"Dados Gerais","index":1,"n_rows":66,"n_cols":15,"rows_kept":66,"cut":false,"hidden":false,"merged":[[30,8,30,10],[30,11,30,15],[33,14,34,15],[31,1,31,4],[31,5,31,7],[31,8,31,10],[31,11,31,15],[33,1,34,4],[33,5,34,6],[33,7,34,9],[33,10,34,11],[33,12,34,13],[16,1,16,6],[16,7,16,9],[16,10,16,15],[44,8,44,15],[44,1,64,7],[64,8,68,15],[65,1,68,7],[25,11,25,13],[32,1,32,15],[23,8,23,9],[22,8,22,9],[25,5,25,10],[25,1,25,4],[21,1,21,4],[24,1,24,4],[35,1,35,15],[15,1,15,6],[15,7,15,9],[15,10,15,15],[10,1,10,6],[10,7,10,9],[10,10,10,15],[11,1,11,6],[11,7,11,9],[11,10,11,15],[12,1,12,6],[12,7,12,9],[12,10,12,15],[13,1,13,6],[13,7,13,9],[13,10,13,15],[9,10,9,15],[43,1,43,15],[18,7,18,9],[18,10,18,15],[17,10,17,15],[19,1,19,15],[21,5,21,15],[18,1,18,6],[20,14,20,15],[20,5,20,12],[20,1,20,4],[22,5,22,7],[17,1,17,6],[22,1,22,4],[23,1,23,4],[23,5,23,7],[8,7,8,9],[17,7,17,9],[14,1,14,6],[14,7,14,9],[1,5,1,15],[2,1,2,15],[3,1,3,15],[4,5,6,15],[8,10,8,15],[8,1,8,6],[7,5,7,15],[4,1,6,4],[7,1,7,4],[14,10,14,15],[9,1,9,6],[9,7,9,9],[36,1,42,15],[22,10,22,15],[23,10,23,15],[25,14,25,15],[24,5,24,13],[26,1,26,15],[27,1,27,4],[27,5,27,15],[28,1,28,4],[28,5,28,15],[29,1,29,4],[29,5,29,7],[29,8,29,10],[29,11,29,15],[30,1,30,4],[30,5,30,7]]}
[]
[null,null,null,null,null,"Posto Transformador Urbano - Interligação Neoenergia"]
[]
[null,"Dados Básicos do Serviço"]
[null,"Resumo do Serviço :"]
[]
[]
[null,"Tipo de Serviço:"]
[null,"Interligação ou adequação na rede a cargo da NEOENERGIA?",null,null,null,null,null,null,null,null,{"$f":"IF(H9=\"SIM\",\"De acordo com as regras de simplificação!\",IF(H9=\"Não\",\"Reprovado! Não poderá utilizar o formulário!\",\"\"))","v":""}]
[null,"Trata-se de único e exclusivo ponto de consumo na propriedade (ramal de ligação único)?",null,null,null,null,null,null,null,null,{"$f":"IF(H10=\"SIM\",\"OK\",IF(H10=\"Não\",\"Reprovado! Não pode haver 2 ramais de ligação na mesma propriedade!\",\nIF(H10=\"Não, condição existente já energizada\",\"Conforme DIS-NOR-036, poderá ser mantido, contudo na vistoria serão observadas as condições técnicas e de segurança\",\"\")))","v":""}]
[null,"Formulário de Informação de Demanda enviado e devidamente preenchido? DIS-FRO-004 ou 005?",null,null,null,null,null,null,null,null,{"$f":"IF(H11=\"SIM\",\"OK\",IF(H11=\"Não\",\"Reprovado! Formulário deverá ser enviado!\",\"\"))","v":""}]
[null,"Respeitadas os afastamentos minimos das edificações e divisas? Figura 14 do Anexo VIII - DIS-NOR-012",null,null,null,null,null,null,null,null,{"$f":"IF(H12=\"SIM\",\"OK\",IF(H12=\"Não\",\"Reprovado! Todas as distâncias deverão ser respeitadas\",\"\"))","v":""}]
[null,"Efetuada viabilidade em campo para confirmar informações apresentadas?",null,null,null,null,null,null,null,null,{"$f":"IF(H13=\"SIM\",\"OK\",IF(H13=\"Não\",\"Reprovado! Deverá efetuar viabilidade!\",\"\"))","v":""}]
[null,"Necessidade de poda, corte ou licenciamento ambiental, para as instalações internas?",null,null,null,null,null,null,null,null,{"$f":"IF(H14=\"SIM\",\"Reprovado! Providenciar Licença!\",IF(H14=\"Não\",\"OK\",\"\"))","v":""}]
[null,"São Utilizadas Caixas de Fibra ou Alumínio?",null,null,null,null,null,null,null,null,{"$f":"IF(H15=\"SIM\",\"OK\", IF(H15=\"N/A\",\"OK\", IF(H15=\"Não\",\"Reprovado! Utilizar!\",\"\")))","v":""}]
[null,"Optante Grupo B (Trafo até 112,5 kVA)?",null,null,null,null,null,null,null,null,{"$f":"IF(H16=\"SIM\",\"Informar Demanda Calculada (KVA)\",IF(H16=\"Não\",\"Informar Demanda Contratada (kW)\",\"\"))","v":""}]
[null,"Existe gerador proposto nas instalações?",null,null,null,null,null,null,null,null,{"$f":"IF(H17=\"SIM\",\"Não poderá utilizar o formulário! Apresentar projeto completo!\",IF(H17=\"Não\",\"OK\",\"\"))","v":""}]
[null,"Instalações internas ficam apenas dentro dos limites da propriedade?",null,null,null,null,null,null,null,null,{"$f":"IF(H18=\"SIM\",\"OK\",IF(H18=\"Não\",\"Reprovado!\",\"\"))","v":""}]
[null,"Enviada ART/TRT/Outro (Projeto, Aterramento...):",null,null,null,null,null,null,null,null,{"$f":"IF(H19=\"sim\",\"OK\",IF(H19=\"Não\",\"ENVIAR. REPROVADO\",\"\"))","v":""}]
[null,"Dados da Unidade Consumidora"]
[null,"Responsável Pela U.C.",null,null,null,null,null,null,null,null,null,null,null,"UC"]
[null,"E-mail"]
[null,"RG",null,null,null,null,null,null,"CPF/CNPJ"]
[null,"Telefone Fixo ou Principal",null,null,null,null,null,null,"Celular"]
[null,"Endereço",null,null,null,null,null,null,null,null,null,null,null,null,"Nº."]
[null,"Município/Localidade",null,null,null,null,null,null,null,null,null,"UF"]
[null,"Dados do Responsável Técnico"]
[null,"Responsável Técnico"]
[null,"E-mail"]
[null,"Telefone fixo",null,null,null,null,null,null,"Celular"]
[null,"Conselho de Classe",null,null,null,null,null,null,"Nº CREA/CFT/..."]
[null,"Formação",null,null,null,null,null,null,"Nº da ART/TRT/..."]
[null,"Transformador Retirado  (Se houver)"]
[null,"Potência do Equipamento",null,null,null,null,null,"Secundário",null,null,null,null,"Elo"]
[]
[null,"Observações/Comentários adicionais"]
[]
[]
[]
[]
[]
[]
[]
[null,"Declaração e Assinatura"]
[null,"Declaro verdadeiras todas as informações prestadas nesse memorial.",null,null,null,null,null,null,"Assinatura do Responsável técnico"]
[]
[]
[]
[]
[]
[]
[]
[]
[]
[]
[]
[]
[]
[]
[]
[]
[]
[]
[]
[]
[null,"_________________/_____/_____/_____"]

{"sheet":"Carga","index":2,"n_rows":52,"n_cols":10,"rows_kept":52,"cut":false,"hidden":false,"merged":[[47,2,47,3],[48,2,48,3],[47,4,47,7],[48,4,48,7],[51,2,52,9],[46,4,46,7],[35,4,35,7],[36,4,36,7],[37,4,37,7],[38,4,38,7],[39,4,39,7],[40,4,40,7],[41,4,41,7],[42,4,42,7],[43,4,43,7],[44,4,44,7],[45,4,45,7],[16,4,16,7],[17,4,17,7],[34,4,34,7],[21,4,21,7],[22,4,22,7],[23,4,23,7],[24,4,24,7],[25,4,25,7],[26,4,26,7],[29,4,29,7],[30,4,30,7],[31,4,31,7],[32,4,32,7],[33,4,33,7],[18,4,18,7],[27,4,27,7],[42,2,42,3],[43,2,43,3],[44,2,44,3],[45,2,45,3],[34,2,34,3],[35,2,35,3],[46,2,46,3],[7,4,7,7],[8,4,8,7],[9,4,9,7],[10,4,10,7],[11,4,11,7],[36,2,36,3],[37,2,37,3],[38,2,38,3],[39,2,39,3],[40,2,40,3],[41,2,41,3],[30,2,30,3],[31,2,31,3],[23,2,23,3],[24,2,24,3],[32,2,32,3],[33,2,33,3],[16,2,16,3],[17,2,17,3],[18,2,18,3],[19,2,19,3],[20,2,20,3],[29,2,29,3],[28,2,28,3],[21,2,21,3],[25,2,25,3],[26,2,26,3],[27,2,27,3],[10,2,10,3],[11,2,11,3],[13,4,13,7],[14,4,14,7],[15,4,15,7],[28,4,28,7],[22,2,22,3],[19,4,19,7],[20,4,20,7],[1,6,1,9],[4,2,5,9],[6,4,6,7],[6,2,6,3],[12,2,12,3],[13,2,13,3],[14,2,14,3],[15,2,15,3],[12,4,12,7],[7,2,7,3],[8,2,8,3],[9,2,9,3]]}
[]
[null,null,null,null,null,null,"Posto Transformador Simplificado Urbano"]
[]
[]
[null,null,"Declaração de Carga"]
[]
[null,null,"Quantidade",null,"Descrição do Equipamento/Aparelho/Motor, etc.",null,null,null,"Pot. Unitária (W)","Pot. Total (W)"]
[null,null,null,null,null,null,null,null,null,{"$f":"C8*I8","v":0}]
[null,null,null,null,null,null,null,null,null,{"$f":"C9*I9","v":0}]
[null,null,null,null,null,null,null,null,null,0]
[null,null,null,null,null,null,null,null,null,0]
[null,null,null,null,null,null,null,null,null,0]
[null,null,null,null,null,null,null,null,null,0]
[null,null,null,null,null,null,null,null,null,0]
[null,null,null,null,null,null,null,null,null,0]
[null,null,null,null,null,null,null,null,null,0]
[null,null,null,null,null,null,null,null,null,0]
[null,null,null,null,null,null,null,null,null,0]
[null,null,null,null,null,null,null,null,null,0]
[null,null,null,null,null,null,null,null,null,0]
[null,null,null,null,null,null,null,null,null,0]
[null,null,null,null,null,null,null,null,null,0]
[null,null,null,null,null,null,null,null,null,0]
[null,null,null,null,null,null,null,null,null,0]
[null,null,null,null,null,null,null,null,null,0]
[null,null,null,null,null,null,null,null,null,0]
[null,null,null,null,null,null,null,null,null,0]
[null,null,null,null,null,null,null,null,null,0]
[null,null,null,null,null,null,null,null,null,0]
[null,null,null,null,null,null,null,null,null,0]
[null,null,null,null,null,null,null,null,null,0]
[null,null,null,null,null,null,null,null,null,0]
[null,null,null,null,null,null,null,null,null,0]
[null,null,null,null,null,null,null,null,null,0]
[null,null,null,null,null,null,null,null,null,0]
[null,null,null,null,null,null,null,null,null,0]
[null,null,null,null,null,null,null,null,null,0]
[null,null,null,null,null,null,null,null,null,0]
[null,null,null,null,null,null,null,null,null,0]
[null,null,null,null,null,null,null,null,null,0]
[null,null,null,null,null,null,null,null,null,0]
[null,null,null,null,null,null,null,null,null,0]
[null,null,null,null,null,null,null,null,null,0]
[null,null,null,null,null,null,null,null,null,0]
[null,null,null,null,null,null,null,null,null,0]
[null,null,null,null,null,null,null,null,null,0]
[null,null,null,null,null,null,null,null,null,0]
[null,null,null,null,null,null,null,null,null,0]
[null,null,null,null,null,null,null,null,null,0]
[null,null,null,null,null,null,null,null,"Potência Total",{"$f":"SUM(J8:J49)","v":0}]
[]
[null,null,"Caso as linhas forem insuficientes para declaração de carga, enviar em documento anexo ao processo, no formato \"Doc\" ou \"Pdf\", com o nome \"Declaração de Carga\"."]

{"sheet":"Dados de Entrada","index":3,"n_rows":29,"n_cols":11,"rows_kept":29,"cut":false,"hidden":false,"merged":[[11,3,11,6],[11,7,11,8],[7,9,7,11],[22,3,22,6],[22,7,22,8],[17,9,18,11],[24,7,24,8],[28,3,29,6],[28,7,29,8],[15,7,15,8],[26,3,26,6],[1,6,1,9],[9,7,9,8],[17,7,17,8],[19,7,20,8],[26,9,26,11],[13,9,13,11],[4,3,5,8],[26,7,26,8],[13,3,13,6],[7,3,7,6],[9,3,9,6],[17,3,17,6],[15,3,15,6],[19,3,20,6],[7,7,7,8],[24,3,24,6]]}
[]
[null,null,null,null,null,null,"Posto Transformador Simplificado Urbano"]
[]
[]
[null,null,null,"Parâmetros  para dimensionamento do Ramal de Entrada"]
[]
[]
[null,null,null,"Tensão Primária (KV):",null,null,null,null,null,{"$f":"IF(H8=13.2,\"Tensão exclusiva para Guarujá/SP\",\"\")","v":""}]
[]
[null,null,null,"Tensão Secundária (V):"]
[]
[null,null,null,"Grupo B Optante?:"]
[]
[null,null,null,"Demanda Calculada/Contratada:",null,null,null,null,{"$f":"IFERROR(IF(H12=\"SIM\",\"KVA\",IF(H12=\"Não\",\"KW\",\"\")),\"\")","v":""},{"$f":"IF(AND(H12=\"SIM\",H14>112.5),\"Rever, pois Grupo B é limitado a 112,5 kVA\",\"\")","v":""}]
[]
[null,null,null,"Fator de potência",null,null,null,null,null,null,{"$f":"IFERROR(H14/H16,\"\")","v":""}]
[]
[null,null,null,"Potência Nominal do Transformador (KVA):",null,null,null,null,null,{"$f":"IF(H18<K16,\"Não poderá existir sobrecarga! Rever potência, demanda ou Fator de potência!\",\"\")","v":""}]
[]
[null,null,null,"Tipo de Isolação do  condutor dor ramal de entrada (BT)"]
[null,null,null,null,null,null,null,null,null,{"$f":"IF(K16<=30,\"30\",IF(K16<=45,\"45\",IF(K16<=75,\"75\",IF(K16<=112.2,\"112,5\",IF(K16<=150,\"150\",IF(K16<=225,\"225\",IF(K16<=300,\"300\",\"\")))))))","v":""}]
[]
[null,null,null,"Tipo de eletroduto do ramal de entrada (BT)"]
[]
[null,null,null,"Altura do Poste (metros)"]
[]
[null,null,null,"Tipo de Poste ",null,null,null,null,null,{"$f":"IF(AND(H8=13.8,H18=300,H27=\"Concreto Duplo T\"),\"Alterar para poste Concreto Circular\",IF(AND(H8=34.5,H18=225,H27=\"Concreto Duplo T\"),\"Alterar para poste Concreto Circular\",IF(AND(H8=34.5,H18=300,H27=\"Concreto Duplo T\"),\"Alterar para poste Concreto Circular\",\"\")))","v":""}]
[]
[null,null,null,"Ramal de ligação cruzará  a rua ou  sómente a calçada?"]

{"sheet":"Backup","index":4,"n_rows":225,"n_cols":78,"rows_kept":225,"cut":false,"hidden":false,"merged":[[224,22,229,42],[224,43,229,63],[52,43,54,51],[159,22,162,42],[159,43,162,63],[88,57,90,57],[91,2,94,83],[99,30,101,32],[99,53,102,57],[132,2,135,83],[117,57,121,65],[119,32,121,40],[122,32,124,40],[125,32,127,40],[114,32,118,40],[113,57,116,65],[2,2,2,18],[2,19,2,83],[6,2,9,83],[11,7,54,8],[11,77,54,78],[52,33,54,41],[39,26,54,30],[39,54,54,59],[140,22,143,63],[147,22,150,42],[147,43,150,63],[153,22,156,42],[153,43,156,63],[193,22,196,42],[193,43,196,63],[199,22,202,42],[199,43,202,63],[165,22,168,42],[165,43,168,63],[171,22,174,42],[171,43,174,63],[177,22,180,42],[177,43,180,54],[177,55,180,63],[183,22,190,42],[183,43,190,63],[205,22,208,42],[205,43,208,63],[211,22,214,42],[211,43,214,63],[217,22,220,42],[217,43,220,63],[109,68,111,73],[15,39,17,45],[19,39,29,45],[108,24,111,27],[42,33,47,39],[42,45,47,51],[104,71,108,75],[109,57,112,65],[71,18,74,67],[59,42,61,42],[65,36,68,48],[33,43,38,49],[14,14,19,35],[104,68,108,70],[107,18,110,21],[103,16,106,21]]}
[]
[]
[null,null,null,null,null,null,null,null,null,null,null,null,null,null,null,null,null,null,null,"Posto Transformador Urbano Simplificado - Inteligação NEOENERGIA "]
[]
[]
[]
[null,null,"PLANTA SITUAÇÃO/LOCALIZAÇÃO"]
[]
[]
[]
[]
[null,null,null,null,null,null,null,"Anotar Nome da Rua",null,null,null,null,null,null,null,null,null,null,null,null,null,null,null,null,null,null,null,null,null,null,null,null,null,null,null,null,null,null,null,null,null,null,null,null,null,null,null,null,null,null,null,null,null,null,null,null,null,null,null,null,null,null,null,null,null,null,null,null,null,null,null,null,null,null,null,null,null,"Anotar Nome da Rua"]
[]
[]
[null,null,null,null,null,null,null,null,null,null,null,null,null,null,"Nota: Todos os afastamentos indicados em relação ao poste devem ser indicados em metros."]
[null,null,null,null,null,null,null,null,null,null,null,null,null,null,null,null,null,null,null,null,null,null,null,null,null,null,null,null,null,null,null,null,null,null,null,null,null,null,null,"Edificação"]
[]
[]
[]
[null,null,null,null,null,null,null,null,null,null,null,null,null,null,null,null,null,null,null,null,null,null,null,null,null,null,null,null,null,null,null,null,null,null,null,null,null,null,null,"Anotar Finalidade da Empresa"]
[]
[]
[]
[]
[]
[]
[]
[]
[]
[]
[]
[]
[]
[null,null,null,null,null,null,null,null,null,null,null,null,null,null,null,null,null,null,null,null,null,null,null,null,null,null,null,null,null,null,null,null,null,null,null,null,null,null,null,null,null,null,null,"Anotar distância (M)"]
[]
[]
[]
[]
[]
[null,null,null,null,null,null,null,null,null,null,null,null,null,null,null,null,null,null,null,null,null,null,null,null,null,null,"Anotar UC ou Medidor do Vizinho",null,null,null,null,null,null,null,null,null,null,null,null,null,null,null,null,null,null,null,null,null,null,null,null,null,null,null,"Anotar UC ou Medidor do Vizinho"]
[]
[]
[null,null,null,null,null,null,null,null,null,null,null,null,null,null,null,null,null,null,null,null,null,null,null,null,null,null,null,null,null,null,null,null,null,"Anotar distância (M)",null,null,null,null,null,null,null,null,null,null,null,"Anotar distância (M)"]
[]
[]
[]
[]
[]
[]
[]
[]
[]
[null,null,null,null,null,null,null,null,null,null,null,null,null,null,null,null,null,null,null,null,null,null,null,null,null,null,null,null,null,null,null,null,null,"Distância (M)",null,null,null,null,null,null,null,null,null,"Coordenada Poste"]
[]
[]
[]
[]
[]
[]
[null,null,null,null,null,null,null,null,null,null,null,null,null,null,null,null,null,null,null,null,null,null,null,null,null,null,null,null,null,null,null,null,null,null,null,null,null,null,null,null,null,null,1]
[]
[]
[]
[]
[]
[null,null,null,null,null,null,null,null,null,null,null,null,null,null,null,null,null,null,null,null,null,null,null,null,null,null,null,null,null,null,null,null,null,null,null,null,"INTERLIGAÇÃO DISTRIBUIDORA"]
[]
[]
[]
[]
[]
[null,null,null,null,null,null,null,null,null,null,null,null,null,null,null,null,null,null,{"$f":"CONCATENATE('Dados Gerais'!F25,\",\",\" \",\"Nº.\",\" \",'Dados Gerais'!P25)","v":", Nº. "}]
[]
[]
[]
[]
[]
[]
[]
[]
[]
[]
[]
[]
[]
[]
[]
[]
[]
[]
[]
[null,null,"DIAGRAMA UNIFILAR (MT/BT)"]
[]
[]
[]
[]
[]
[]
[]
[null,null,null,null,null,null,null,null,null,null,null,null,null,null,null,null,null,null,null,null,null,null,null,null,null,null,null,null,null,null,{"$f":"AR154","v":""},null,null,null,null,null,null,null,null,null,null,null,null,null,null,null,null,null,null,null,null,null,null,{"$f":"CONCATENATE(AR160,\"A\")","v":"A"}]
[]
[]
[]
[null,null,null,null,null,null,null,null,null,null,null,null,null,null,null,null,"Fonte"]
[null,null,null,null,null,null,null,null,null,null,null,null,null,null,null,null,null,null,null,null,null,null,null,null,null,null,null,null,null,null,null,null,null,null,null,null,null,null,null,null,null,null,null,null,null,null,null,null,null,null,null,null,null,null,null,null,null,null,null,null,null,null,null,null,null,null,null,null,{"$f":"'Dados de Entrada'!H14","v":0},null,null,{"$f":"IF('Dados de Entrada'!H12=\"Sim\",\"KVA\",IF('Dados de Entrada'!H12=\"Não\",\"KW\",\"\"))","v":""}]
[]
[]
[]
[null,null,null,null,null,null,null,null,null,null,null,null,null,null,null,null,null,null,null,null,null,null,null,null,{"$f":"CONCATENATE('Dados de Entrada'!H8,\"KV\")","v":"KV"}]
[null,null,null,null,null,null,null,null,null,null,null,null,null,null,null,null,null,null,null,null,null,null,null,null,null,null,null,null,null,null,null,null,null,null,null,null,null,null,null,null,null,null,null,null,null,null,null,null,null,null,null,null,null,null,null,null,null,{"$f":"AR166","v":""},null,null,null,null,null,null,null,null,null,null,{"$f":"CONCATENATE(\"FP:\",\" \",'Dados de Entrada'!H16)","v":"FP: "}]
[]
[]
[]
[null,null,null,null,null,null,null,null,null,null,null,null,null,null,null,null,null,null,null,null,null,null,null,null,null,null,null,null,null,null,null,null,null,null,null,null,null,null,null,null,null,null,null,null,null,null,null,null,null,null,null,null,null,null,null,null,null,{"$f":"AR172","v":0}]
[null,null,null,null,null,null,null,null,null,null,null,null,null,null,null,null,null,null,null,null,null,null,null,null,null,null,null,null,null,null,null,null,{"$f":"IF('Dados de Entrada'!H8=13.8,\"Δ-Y Aterrada\",IF('Dados de Entrada'!H8=13.2,\"Δ-Y Aterrada\",IF('Dados de Entrada'!H8=34.5,\"Y-Y Aterrada\",\"\")))","v":""}]
[]
[]
[null,null,null,null,null,null,null,null,null,null,null,null,null,null,null,null,null,null,null,null,null,null,null,null,null,null,null,null,null,null,null,null,null,null,null,null,null,null,null,null,null,null,null,null,null,null,null,null,null,null,null,null,null,null,null,null,null,{"$f":"CONCATENATE(AR178,\" - \",BD178)","v":" - 0"}]
[]
[null,null,null,null,null,null,null,null,null,null,null,null,null,null,null,null,null,null,null,null,null,null,null,null,null,null,null,null,null,null,null,null,{"$f":"CONCATENATE('Dados de Entrada'!H18,\" \",\"KVA\")","v":" KVA"}]
[]
[]
[null,null,null,null,null,null,null,null,null,null,null,null,null,null,null,null,null,null,null,null,null,null,null,null,null,null,null,null,null,null,null,null,{"$f":"CONCATENATE('Dados de Entrada'!H8,\" \",\"KV\",\" - \",'Dados de Entrada'!H10,\"V\")","v":" KV - V"}]
[]
[]
[null,null,null,null,null,null,null,null,null,null,null,null,null,null,null,null,null,null,null,null,null,null,null,null,null,null,null,null,null,null,null,null,{"$f":"AR194","v":""}]
[]
[]
[]
[]
[]
[]
[null,null,"DIMENSIONAMENTO AUTOMÁTICO DO RAMAL DE ENTRADA (CONFORME PARÂMETROS INFORMADOS)"]
[]
[]
[]
[]
[]
[]
[]
[null,null,null,null,null,null,null,null,null,null,null,null,null,null,null,null,null,null,null,null,null,null,"RESUMO DAS INSTALAÇÕES"]
[]
[]
[]
[]
[]
[]
[null,null,null,null,null,null,null,null,null,null,null,null,null,null,null,null,null,null,null,null,null,null,"Potência do Transformador:",null,null,null,null,null,null,null,null,null,null,null,null,null,null,null,null,null,null,null,null,{"$f":"CONCATENATE('Dados de Entrada'!H18,\"KVA\",\" - \",'Dados de Entrada'!H10,\"V\")","v":"KVA - V"}]
[]
[]
[]
[]
[]
[null,null,null,null,null,null,null,null,null,null,null,null,null,null,null,null,null,null,null,null,null,null,"Elo Fusível de Proteção:",null,null,null,null,null,null,null,null,null,null,null,null,null,null,null,null,null,null,null,null,{"$f":"IFERROR(VLOOKUP(CONCATENATE('Dados de Entrada'!H10,'Dados de Entrada'!H18,'Dados de Entrada'!H8),Tabela!$A$5:$L$46,4,0),\"\")","v":""}]
[]
[]
[]
[]
[]
[null,null,null,null,null,null,null,null,null,null,null,null,null,null,null,null,null,null,null,null,null,null,"Disjuntor de proteção baixa tensão (BT)",null,null,null,null,null,null,null,null,null,null,null,null,null,null,null,null,null,null,null,null,{"$f":"IFERROR(VLOOKUP(CONCATENATE('Dados de Entrada'!H10,'Dados de Entrada'!H18,'Dados de Entrada'!H8),Tabela!$A$5:$L$46,5,0),\"\")","v":""}]
[]
[]
[]
[]
[]
[null,null,null,null,null,null,null,null,null,null,null,null,null,null,null,null,null,null,null,null,null,null,"Condutor do ramal de entrada aéreo ",null,null,null,null,null,null,null,null,null,null,null,null,null,null,null,null,null,null,null,null,{"$f":"IFERROR(VLOOKUP(CONCATENATE('Dados de Entrada'!H10,'Dados de Entrada'!H18,'Dados de Entrada'!H20),Tabela!$A$143:$B$170,2,0),\"\")","v":""}]
[]
[]
[]
[]
[]
[null,null,null,null,null,null,null,null,null,null,null,null,null,null,null,null,null,null,null,null,null,null,"Isolação do Condutor",null,null,null,null,null,null,null,null,null,null,null,null,null,null,null,null,null,null,null,null,{"$f":"'Dados de Entrada'!H20","v":0}]
[]
[]
[]
[]
[]
[null,null,null,null,null,null,null,null,null,null,null,null,null,null,null,null,null,null,null,null,null,null,"Eletroduto",null,null,null,null,null,null,null,null,null,null,null,null,null,null,null,null,null,null,null,null,{"$f":"IFERROR(VLOOKUP(CONCATENATE('Dados de Entrada'!H10,'Dados de Entrada'!H18,'Dados de Entrada'!H20,'Dados de Entrada'!H23),Tabela!$A$82:$F$137,6,0),\"\")","v":""},null,null,null,null,null,null,null,null,null,null,null,{"$f":"'Dados de Entrada'!H23","v":0}]
[]
[]
[]
[]
[]
[null,null,null,null,null,null,null,null,null,null,null,null,null,null,null,null,null,null,null,null,null,null,"Ligação do Transformador",null,null,null,null,null,null,null,null,null,null,null,null,null,null,null,null,null,null,null,null,{"$f":"IF('Dados de Entrada'!H8=13.8,\"Primário: Delta - Secundário: Estrela Aterrada\",IF('Dados de Entrada'!H8=13.2,\"Primário: Delta - Secundário: Estrela Aterrada\",IF('Dados de Entrada'!H8=34.5,\"Primário: Estrela - Secundário: Estrela com Neutro Acessível\",\"\")))","v":""}]
[]
[]
[]
[]
[]
[]
[]
[]
[]
[null,null,null,null,null,null,null,null,null,null,null,null,null,null,null,null,null,null,null,null,null,null,"TAPs Primários",null,null,null,null,null,null,null,null,null,null,null,null,null,null,null,null,null,null,null,null,{"$f":"IF('Dados de Entrada'!H8=13.8,\"13,8/13,2/12,6\",IF('Dados de Entrada'!H8=13.2,\"13,2/12,6/11,9\",IF('Dados de Entrada'!H8=34.5,\"34,5/33,0\",\"\")))","v":""}]
[]
[]
[]
[]
[]
[null,null,null,null,null,null,null,null,null,null,null,null,null,null,null,null,null,null,null,null,null,null,"Classe de Tensão",null,null,null,null,null,null,null,null,null,null,null,null,null,null,null,null,null,null,null,null,{"$f":"IF('Dados de Entrada'!H8=13.8,\"15 KV\",IF('Dados de Entrada'!H8=13.2,\"15 KV\",IF('Dados de Entrada'!H8=34.5,\"36,2\",\"\")))","v":""}]
[]
[]
[]
[]
[]
[null,null,null,null,null,null,null,null,null,null,null,null,null,null,null,null,null,null,null,null,null,null,"Altura do Poste",null,null,null,null,null,null,null,null,null,null,null,null,null,null,null,null,null,null,null,null,{"$f":"'Dados de Entrada'!H25","v":0}]
[]
[]
[]
[]
[]
[null,null,null,null,null,null,null,null,null,null,null,null,null,null,null,null,null,null,null,null,null,null,"Resistência Mecânica do poste (daN)",null,null,null,null,null,null,null,null,null,null,null,null,null,null,null,null,null,null,null,null,{"$f":"IFERROR(VLOOKUP(CONCATENATE('Dados de Entrada'!H8,'Dados de Entrada'!H18,'Dados de Entrada'!H27),Tabela!$K$52:$L$93,2,0),\"\")","v":""}]
[]
[]
[]
[]
[]
[null,null,null,null,null,null,null,null,null,null,null,null,null,null,null,null,null,null,null,null,null,null,"Tipo",null,null,null,null,null,null,null,null,null,null,null,null,null,null,null,null,null,null,null,null,{"$f":"'Dados de Entrada'!H27","v":0}]
[]
[]
[]
[]
[]
[]
[null,null,null,null,null,null,null,null,null,null,null,null,null,null,null,null,null,null,null,null,null,null,"Detalhes Construtivos (Posto Transformador)",null,null,null,null,null,null,null,null,null,null,null,null,null,null,null,null,null,null,null,null,{"$f":"IF(AND('Dados de Entrada'!H8=13.8,'Dados de Entrada'!H10=\"127/220\",'Dados de Entrada'!H18<45),\"Figura  14 do Anexo III NOR-36\",\nIF(AND('Dados de Entrada'!H8=13.8,'Dados de Entrada'!H10=\"220/380\",'Dados de Entrada'!H18<75),\"Figura  14 do Anexo III NOR-36\",\nIF(AND('Dados de Entrada'!H8=13.2,'Dados de Entrada'!H10=\"127/220\",'Dados de Entrada'!H18<45),\"Figura  14 do Anexo III NOR-36\",\nIF(AND('Dados de Entrada'!H8=13.2,'Dados de Entrada'!H10=\"220/380\",'Dados de Entrada'!H18<75),\"Figura  14 do Anexo III NOR-36\",\nIF(AND('Dados de Entrada'!H8=34.5,'Dados de Entrada'!H10=\"127/220\",'Dados de Entrada'!H18<45),\"Figura  15 do Anexo III NOR-36\",\nIF(AND('Dados de Entrada'!H8=34.5,'Dados de Entrada'!H10=\"220/380\",'Dados de Entrada'!H18<75),\"Figura  15 do Anexo III NOR-36\",\nIF(AND('Dados de Entrada'!H8=13.8,'Dados de Entrada'!H10=\"127/220\",'Dados de Entrada'!H18>30),\"Figura  16 do Anexo III NOR-36\",\nIF(AND('Dados de Entrada'!H8=13.8,'Dados de Entrada'!H10=\"220/380\",'Dados de Entrada'!H18>45),\"Figura  16 do Anexo III NOR-36\",\nIF(AND('Dados de Entrada'!H8=13.2,'Dados de Entrada'!H10=\"127/220\",'Dados de Entrada'!H18>30),\"Figura  16 do Anexo III NOR-36\",\nIF(AND('Dados de Entrada'!H8=13.2,'Dados de Entrada'!H10=\"220/380\",'Dados de Entrada'!H18>45),\"Figura  16 do Anexo III NOR-36\",\nIF(AND('Dados de Entrada'!H8=34.5,'Dados de Entrada'!H10=\"127/220\",'Dados de Entrada'!H18>30),\"Figura  17 do Anexo III NOR-36\",\nIF(AND('Dados de Entrada'!H8=34.5,'Dados de Entrada'!H10=\"220/380\",'Dados de Entrada'!H18>45),\"Figura  17 do Anexo III NOR-36\",\"Poste: Figura 70, Anexo II NOR-013 e Entrada conforme Figura 16, Anexo III - NOR-36\"))))))))))))","v":"Poste: Figura 70, Anexo II NOR-013 e Entrada conforme Figura 16, Anexo III - NOR-36"}]

{"sheet":"Detalhes Construtivos","index":5,"n_rows":8,"n_cols":16,"rows_kept":8,"cut":false,"hidden":false,"merged":[[1,6,1,14],[3,2,63,14]]}
[]
[null,null,null,null,null,null,"Posto Transformador Simplificado - Detalhes Construtivos "]
[]
[]
[]
[]
[]
[null,null,null,null,null,null,null,null,null,null,null,null,null,null,null,{"$f":"IF(Backup!AR225=\"Figura  16 do Anexo III NOR-36\",\"1\",IF(Backup!AR225=\"Figura  17 do Anexo III NOR-36\",\"2\",IF(Backup!AR225=\"Poste: Figura 70, Anexo II NOR-013 e Entrada conforme Figura 16, Anexo III - NOR-36\",\"3\",IF(Backup!AR225=\"Figura  14 do Anexo III NOR-36\",\"4\",IF(Backup!AR225=\"Figura  15 do Anexo III NOR-36\",\"5\",\"\")))))","v":"3"}]

{"sheet":"Tab Normas","index":6,"n_rows":33,"n_cols":7,"rows_kept":33,"cut":false,"hidden":false,"merged":[[4,3,5,13],[32,4,33,11],[1,6,1,12]]}
[]
[null,null,null,null,null,null,"Posto Transformador Simplificado Urbano"]
[]
[]
[null,null,null,"Tabela 14 - Dimensionamento do Ramal de Entrada Referente a BT para Consumidores Primários até 300 kVA"]
[]
[]
[]
[]
[]
[]
[]
[]
[]
[]
[]
[]
[]
[]
[]
[]
[]
[]
[]
[]
[]
[]
[]
[]
[]
[]
[]
[null,null,null,null,"Tabela 11 - Dimensionamento de Postes para Instalação de Transformadores"]

{"sheet":"Tabela Detalhes","index":7,"n_rows":7,"n_cols":7,"rows_kept":7,"cut":false,"hidden":false,"merged":[]}
[]
[null,null,null,null,"Detalhes"]
[null,null,null,null,null,null,13.8]
[null,null,null,null,null,null,36.200000000000003]
[null,null,null,null,null,null,"Posto de Transformação - Medição Indireta"]
[null,null,null,null,null,null,"Posto de transformação - 13,8 - medição direta"]
[null,null,null,null,null,null,"posto de transformação 36,2 medição direta"]

{"sheet":"Tabela","index":8,"n_rows":170,"n_cols":18,"rows_kept":170,"cut":false,"hidden":false,"merged":[[2,11,3,11],[58,4,58,5],[59,4,59,5],[60,4,60,5],[2,6,2,7],[2,9,2,10],[51,4,51,5],[52,4,52,5],[53,4,53,5],[54,4,54,5],[56,4,56,5],[57,4,57,5],[2,4,3,4],[2,5,3,5],[2,8,3,8],[79,4,80,4],[79,5,80,5],[62,1,62,7],[55,4,55,5],[49,2,49,4],[49,5,49,7],[50,4,50,5],[61,4,61,5],[140,1,141,1],[2,3,3,3],[79,1,80,1],[79,2,80,2],[79,3,80,3],[2,1,3,1],[2,2,3,2]]}
[null,null,null,null,null,null,null,null,null,null,null,null,null,null,13.8,"127/220","PVC","PVC"]
[null,null,null,null,null,null,null,null,null,null,null,null,null,null,34.5,"220/380","EPR/XLPE","AÇO"]
[null,"Tensão Secundária (V)","Potência Nominal (KVA)","Elo fusível","Disjuntor BT","Isolação PVC ","Eletroduto",null,"Isolação EPR/XLPE 90ºC (mm²)","Eletroduto",null,"Resistência Mecânica",null,null,null,"254/440"]
[null,null,null,null,null,null,"PVC","AÇO",null,"PVC","AÇO"]
["127/2203013,8","127/220",30,"2H",80,"3x25/25","1.1/4”",{"$f":"G5","v":"1.1/4”"},"3x16/16","1.1/4”",{"$f":"J5","v":"1.1/4”"},400]
["127/2204513,8","127/220",45,"3H",125,"3x50/25","1.1/2”",{"$f":"G6","v":"1.1/2”"},"3x35/25","1.1/2”",{"$f":"J6","v":"1.1/2”"},400,null,null,13.2]
["127/2207513,8","127/220",75,"5H",200,"3x95/50","2”","2”","3x70/35","2”","2”",400,null,null,13.8]
["127/220112,513,8","127/220",112.5,"6K",300,"3x185/95","2.1/2”","2.1/2”","3x120/70","2.1/2”","2.1/2”",400,null,null,34.5]
["127/22015013,8","127/220",150,"8K",400,"2x[3x95/50]","2x2”","2x2”","2x[3x70/35]","2x2”","2x2”",600]
["127/22022513,8","127/220",225,"10K",600,"2x[3x185/150]","2x2.1/2”","2x2.1/2”","2x[3x120/70]","2x2.1/2”","2x2.1/2”",600]
["127/22030013,8","127/220",300,"15K",800,"3x[3x150/70]","3x2.1/2”","3x2.1/2”","2x[3x185/95]","2x4\"","2x4\"",600,null,null,null,30,null,0.92]
["220/3803013,8","220/380",30,"2H",50,"3x16/16","1.1/4”","1.1/4”","3x10/10","1.1/4”","1.1/4”",400,null,null,null,45,null,0.93]
["220/3804513,8","220/380",45,"3H",70,"3x25/25","1.1/4”","1.1/4”","3x16/16","1.1/4”","1.1/4”",400,null,null,null,75,null,0.94]
["220/3807513,8","220/380",75,"5H",125,"3x50/25","1.1/2”","1.1/2”","3x35/25","1.1/2”","1.1/2”",400,null,null,null,112.5,null,0.95]
["220/380112,513,8","220/380",112.5,"6K",175,"3x95/50","2”","2”","3x70/35","2”","2”",400,null,null,null,150,null,0.96]
["220/38015013,8","220/380",150,"8K",250,"3x150/70","2.1/2”","2.1/2”","3x95/50","2.1/2”","2.1/2”",600,null,null,null,225,null,0.97]
["220/38022513,8","220/380",225,"10K",350,"2x[3x95/50]","2x2”","2x2”","2x[3x70/35]","2x2”","2x2”",600,null,null,null,300,null,0.98]
["220/38030013,8","220/380",300,"15K",500,"2x[3x150/70]","2x2.1/2”","2x2.1/2”","2x[3x95/50]","2x2.1/2”","2x2.1/2”",1000,null,null,null,null,null,0.99]
["127/2203013,2","127/220",30,"2H",80,"3x25/25","1.1/4”","1.1/4”","3x16/16","1.1/4”","1.1/4”",400,null,null,null,null,null,1]
["127/2204513,2","127/220",45,"3H",125,"3x50/25","1.1/2”","1.1/2”","3x35/25","1.1/2”","1.1/2”",400]
["127/2207513,2","127/220",75,"5H",200,"3x95/50","2”","2”","3x70/35","2”","2”",400]
["127/220112,513,2","127/220",112.5,"6K",300,"3x185/95","2.1/2”","2.1/2”","3x120/70","2.1/2”","2.1/2”",400]
["127/22015013,2","127/220",150,"8K",400,"2x[3x95/50]","2x2”","2x2”","2x[3x70/35]","2x2”","2x2”",600]
["127/22022513,2","127/220",225,"10K",600,"2x[3x185/150]","2x2.1/2”","2x2.1/2”","2x[3x120/70]","2x2.1/2”","2x2.1/2”",600,null,null,null,"127/220","1.1/4”"]
["127/22030013,2","127/220",300,"15K",800,"3x[3x150/70]","3x2.1/2”","3x2.1/2”","2x[3x185/95]","2x4\"","2x4\"",600,null,null,null,"127/220","1.1/2”"]
["220/3803013,2","220/380",30,"2H",50,"3x16/16","1.1/4”","1.1/4”","3x10/10","1.1/4”","1.1/4”",400,null,null,null,"127/220","2”"]
["220/3804513,2","220/380",45,"3H",70,"3x25/25","1.1/4”","1.1/4”","3x16/16","1.1/4”","1.1/4”",400,null,null,null,"127/220","2.1/2”"]
["220/3807513,2","220/380",75,"5H",125,"3x50/25","1.1/2”","1.1/2”","3x35/25","1.1/2”","1.1/2”",400,null,null,null,"127/220","2x2”"]
["220/380112,513,2","220/380",112.5,"6K",175,"3x95/50","2”","2”","3x70/35","2”","2”",400,null,null,null,"127/220","2x2.1/2”"]
["220/38015013,2","220/380",150,"8K",250,"3x150/70","2.1/2”","2.1/2”","3x95/50","2.1/2”","2.1/2”",600,null,null,null,"127/220","3x2.1/2”"]
["220/38022513,2","220/380",225,"10K",350,"2x[3x95/50]","2x2”","2x2”","2x[3x70/35]","2x2”","2x2”",600,null,null,null,"220/380","1.1/4”"]
["220/38030013,2","220/380",300,"15K",500,"2x[3x150/70]","2x2.1/2”","2x2.1/2”","2x[3x95/50]","2x2.1/2”","2x2.1/2”",1000,null,null,null,"220/380","1.1/4”"]
["127/2203034,5","127/220",30,"1H",80,"3x25/25","1.1/4”","1.1/4”","3x16/16","1.1/4”","1.1/4”",400,null,null,null,"220/380","1.1/2”"]
["127/2204534,5","127/220",45,"2H",125,"3x50/25","1.1/2”","1.1/2”","3x35/25","1.1/2”","1.1/2”",400,null,null,null,"220/380","2”"]
["127/2207534,5","127/220",75,"2H",200,"3x95/50","2”","2”","3x70/35","2”","2”",400,null,null,null,"220/380","2.1/2”"]
["127/220112,534,5","127/220",112.5,"3H",300,"3x185/95","2.1/2”","2.1/2”","3x120/70","2.1/2”","2.1/2”",400,null,null,null,"220/380","2x2”"]
["127/22015034,5","127/220",150,"5H",400,"2x[3x95/50]","2x2”","2x2”","2x[3x70/35]","2x2”","2x2”",600,null,null,null,"220/380","2x2.1/2”"]
["127/22022534,5","127/220",225,"6K",600,"2x[3x185/150]","2x2.1/2”","2x2.1/2”","2x[3x120/70]","2x2.1/2”","2x2.1/2”",600]
["127/22030034,5","127/220",300,"6K",800,"3x[3x150/70]","3x2.1/2”","3x2.1/2”","2x[3x185/95]","2x4\"","2x4\"",600]
["220/3803034,5","220/380",30,"1H",50,"3x16/16","1.1/4”","1.1/4”","3x10/10","1.1/4”","1.1/4”",400]
["220/3804534,5","220/380",45,"2H",70,"3x25/25","1.1/4”","1.1/4”","3x16/16","1.1/4”","1.1/4”",400]
["220/3807534,5","220/380",75,"2H",125,"3x50/25","1.1/2”","1.1/2”","3x35/25","1.1/2”","1.1/2”",400]
["220/380112,534,5","220/380",112.5,"3H",175,"3x95/50","2”","2”","3x70/35","2”","2”",400]
["220/38015034,5","220/380",150,"5H",250,"3x150/70","2.1/2”","2.1/2”","3x95/50","2.1/2”","2.1/2”",600]
["220/38022534,5","220/380",225,"6K",350,"2x[3x95/50]","2x2”","2x2”","2x[3x70/35]","2x2”","2x2”",600]
["220/38030034,5","220/380",300,"6K",500,"2x[3x150/70]","2x2.1/2”","2x2.1/2”","2x[3x95/50]","2x2.1/2”","2x2.1/2”",1000]
[]
[]
[]
[null,"Potência Nominal","Trifásicos",null,null,"Monofásicos"]
[null,"kVA",13.8,null,34.5,null,"7,96 kV","19,9 kV"]
[null,30,"2H",null,"1H",null,"5H","3H",null,null,"13,830Concreto Duplo T",600]
[null,"37,50 a","3H",null,"2H",null,"–","–",null,null,"13,845Concreto Duplo T",600]
[null,45,"3H",null,"2h",null,"–","–",null,null,"13,875Concreto Duplo T",600]
[null,50,"3H",null,"2H",null,"–","–",null,null,"13,8112,5Concreto Duplo T",600]
[null,75,"5H",null,"2H",null,"–","–",null,null,"13,8150Concreto Duplo T",600]
[null,"100,00 a","6K",null,"3H",null,"–","–",null,null,"13,8225Concreto Duplo T",600]
[null,112.5,"6K",null,"3H",null,"–","–",null,null,"13,8300Concreto Duplo T","Utilizar Concreto Circular 600 daN"]
[null,150,"8K",null,"5H",null,"–","–",null,null,"13,230Concreto Duplo T",600]
[null,"200,00 a","10K",null,"6K",null,"–","–",null,null,"13,245Concreto Duplo T",600]
[null,225,"10K",null,"6K",null,"–","–",null,null,"13,275Concreto Duplo T",600]
[null,300,"15K",null,"6k",null,"–","–",null,null,"13,2112,5Concreto Duplo T",600]
[null,"a  Transformadores não padronizados na ELEKTRO",null,null,null,null,null,null,null,null,"13,2150Concreto Duplo T",600]
[null,null,null,null,null,null,null,null,null,null,"13,2225Concreto Duplo T",600]
[null,null,null,null,null,null,null,null,null,null,"13,2300Concreto Duplo T","Utilizar Concreto Circular 600 daN"]
[null,null,null,null,null,null,null,null,null,null,"34,530Concreto Duplo T",600]
[null,null,null,null,null,null,null,null,null,null,"34,545Concreto Duplo T",600]
[null,null,null,null,null,null,null,null,null,null,"34,575Concreto Duplo T",600]
[null,null,null,null,null,null,null,null,null,null,"34,5112,5Concreto Duplo T",600]
[null,null,null,null,null,null,null,null,null,null,"34,5150Concreto Duplo T",600]
[null,null,null,null,null,null,null,null,null,null,"34,5225Concreto Duplo T","Utilizar Concreto Circular 600 daN"]
[null,null,null,null,null,null,null,null,null,null,"34,5300Concreto Duplo T","Utilizar Concreto Circular 1000 daN"]
[null,null,null,null,null,null,null,null,null,null,"13,830Concreto Circular",400]
[null,null,null,null,null,null,null,null,null,null,"13,845Concreto Circular",400]
[null,null,null,null,null,null,null,null,null,null,"13,875Concreto Circular",400]
[null,null,null,null,null,null,null,null,null,null,"13,8112,5Concreto Circular",400]
[null,null,null,null,null,null,null,null,null,null,"13,8150Concreto Circular",600]
[null,null,null,null,null,null,null,null,null,null,"13,8225Concreto Circular",600]
[null,null,null,null,null,null,null,null,null,null,"13,8300Concreto Circular",600]
[null,"Tensão Secundária (V)","Potência Nominal (KVA)","Elo fusível","Disjuntor BT","Eletroduto",null,null,null,null,"13,230Concreto Circular",400]
[null,null,null,null,null,null,null,null,null,null,"13,245Concreto Circular",400]
["127/22030PVC 70º.C (mm²)PVC","127/220",30,"2H",80,"1.1/4”",null,"127/220","1.1/4”",null,"13,275Concreto Circular",400]
["127/22045PVC 70º.C (mm²)PVC","127/220",45,"3H",125,"1.1/2”",null,"127/220","1.1/2”",null,"13,2112,5Concreto Circular",400]
["127/22075PVC 70º.C (mm²)PVC","127/220",75,"5H",200,"2”",null,"127/220","2”",null,"13,2150Concreto Circular",600]
["127/220112,5PVC 70º.C (mm²)PVC","127/220",112.5,"6K",300,"2.1/2”",null,"127/220","2.1/2”",null,"13,2225Concreto Circular",600]
["127/220150PVC 70º.C (mm²)PVC","127/220",150,"8K",400,"2x2”",null,"127/220","2x2”",null,"13,2300Concreto Circular",600]
["127/220225PVC 70º.C (mm²)PVC","127/220",225,"10K",600,"2x2.1/2”",null,"127/220","2x2.1/2”",null,"34,530Concreto Circular",400]
["127/220300PVC 70º.C (mm²)PVC","127/220",300,"15K",800,"3x2.1/2”",null,"127/220","3x2.1/2”",null,"34,545Concreto Circular",400]
["220/38030PVC 70º.C (mm²)PVC","220/380",30,"1H",50,"1.1/4”",null,"220/380","1.1/4”",null,"34,575Concreto Circular",400]
["220/38045PVC 70º.C (mm²)PVC","220/380",45,"2H",70,"1.1/4”",null,"220/380","1.1/4”",null,"34,5112,5Concreto Circular",400]
["220/38075PVC 70º.C (mm²)PVC","220/380",75,"2H",125,"1.1/2”",null,"220/380","1.1/2”",null,"34,5150Concreto Circular",600]
["220/380112,5PVC 70º.C (mm²)PVC","220/380",112.5,"3H",175,"2”",null,"220/380","2”",null,"34,5225Concreto Circular",600]
["220/380150PVC 70º.C (mm²)PVC","220/380",150,"5H",250,"2.1/2”",null,"220/380","2.1/2”",null,"34,5300Concreto Circular",1000]
["220/380225PVC 70º.C (mm²)PVC","220/380",225,"6K",350,"2x2”",null,"220/380","2x2”"]
["220/380300PVC 70º.C (mm²)PVC","220/380",300,"6K",500,"2x2.1/2”",null,"220/380","2x2.1/2”"]
["127/22030PVC 70º.C (mm²)AÇO","127/220",30,"2H",80,"1.1/4”"]
["127/22045PVC 70º.C (mm²)AÇO","127/220",45,"3H",125,"1.1/2”"]
["127/22075PVC 70º.C (mm²)AÇO","127/220",75,"5H",200,"2”"]
["127/220112,5PVC 70º.C (mm²)AÇO","127/220",112.5,"6K",300,"2.1/2”"]
["127/220150PVC 70º.C (mm²)AÇO","127/220",150,"8K",400,"2x2”"]
["127/220225PVC 70º.C (mm²)AÇO","127/220",225,"10K",600,"2x2.1/2”"]
["127/220300PVC 70º.C (mm²)AÇO","127/220",300,"15K",800,"3x2.1/2”"]
["220/38030PVC 70º.C (mm²)AÇO","220/380",30,"1H",50,"1.1/4”"]
["220/38045PVC 70º.C (mm²)AÇO","220/380",45,"2H",70,"1.1/4”"]
["220/38075PVC 70º.C (mm²)AÇO","220/380",75,"2H",125,"1.1/2”"]
["220/380112,5PVC 70º.C (mm²)AÇO","220/380",112.5,"3H",175,"2”"]
["220/380150PVC 70º.C (mm²)AÇO","220/380",150,"5H",250,"2.1/2”"]
["220/380225PVC 70º.C (mm²)AÇO","220/380",225,"6K",350,"2x2”"]
["220/380300PVC 70º.C (mm²)AÇO","220/380",300,"6K",500,"2x2.1/2”"]
["127/22030EPR/XLPE 90ºC (mm²)PVC","127/220",30,"2H",80,"1.1/4”"]
["127/22045EPR/XLPE 90ºC (mm²)PVC","127/220",45,"3H",125,"1.1/2”"]
["127/22075EPR/XLPE 90ºC (mm²)PVC","127/220",75,"5H",200,"2”"]
["127/220112,5EPR/XLPE 90ºC (mm²)PVC","127/220",112.5,"6K",300,"2.1/2”"]
["127/220150EPR/XLPE 90ºC (mm²)PVC","127/220",150,"8K",400,"2x2”"]
["127/220225EPR/XLPE 90ºC (mm²)PVC","127/220",225,"10K",600,"2x2.1/2”"]
["127/220300EPR/XLPE 90ºC (mm²)PVC","127/220",300,"15K",800,"2x4\""]
["220/38030EPR/XLPE 90ºC (mm²)PVC","220/380",30,"1H",50,"1.1/4”"]
["220/38045EPR/XLPE 90ºC (mm²)PVC","220/380",45,"2H",70,"1.1/4”"]
["220/38075EPR/XLPE 90ºC (mm²)PVC","220/380",75,"2H",125,"1.1/2”"]
["220/380112,5EPR/XLPE 90ºC (mm²)PVC","220/380",112.5,"3H",175,"2”"]
["220/380150EPR/XLPE 90ºC (mm²)PVC","220/380",150,"5H",250,"2.1/2”"]
["220/380225EPR/XLPE 90ºC (mm²)PVC","220/380",225,"6K",350,"2x2”"]
["220/380300EPR/XLPE 90ºC (mm²)PVC","220/380",300,"6K",500,"2x2.1/2”"]
["127/22030EPR/XLPE 90ºC (mm²)AÇO","127/220",30,"2H",80,"1.1/4”"]
["127/22045EPR/XLPE 90ºC (mm²)AÇO","127/220",45,"3H",125,"1.1/2”"]
["127/22075EPR/XLPE 90ºC (mm²)AÇO","127/220",75,"5H",200,"2”"]
["127/220112,5EPR/XLPE 90ºC (mm²)AÇO","127/220",112.5,"6K",300,"2.1/2”"]
["127/220150EPR/XLPE 90ºC (mm²)AÇO","127/220",150,"8K",400,"2x2”"]
["127/220225EPR/XLPE 90ºC (mm²)AÇO","127/220",225,"10K",600,"2x2.1/2”"]
["127/220300EPR/XLPE 90ºC (mm²)AÇO","127/220",300,"15K",800,"2x4\""]
["220/38030EPR/XLPE 90ºC (mm²)AÇO","220/380",30,"1H",50,"1.1/4”"]
["220/38045EPR/XLPE 90ºC (mm²)AÇO","220/380",45,"2H",70,"1.1/4”"]
["220/38075EPR/XLPE 90ºC (mm²)AÇO","220/380",75,"2H",125,"1.1/2”"]
["220/380112,5EPR/XLPE 90ºC (mm²)AÇO","220/380",112.5,"3H",175,"2”"]
["220/380150EPR/XLPE 90ºC (mm²)AÇO","220/380",150,"5H",250,"2.1/2”"]
["220/380225EPR/XLPE 90ºC (mm²)AÇO","220/380",225,"6K",350,"2x2”"]
["220/380300EPR/XLPE 90ºC (mm²)AÇO","220/380",300,"6K",500,"2x2.1/2”"]
[]
[]
[]
[null,"Cabo"]
[]
["127/22030PVC 70º.C (mm²)","3x25/25"]
["127/22045PVC 70º.C (mm²)","3x50/25"]
["127/22075PVC 70º.C (mm²)","3x95/50"]
["127/220112,5PVC 70º.C (mm²)","3x185/95"]
["127/220150PVC 70º.C (mm²)","2x[3x95/50]"]
["127/220225PVC 70º.C (mm²)","2x[3x185/150]"]
["127/220300PVC 70º.C (mm²)","3x[3x150/70]"]
["220/38030PVC 70º.C (mm²)","3x16/16"]
["220/38045PVC 70º.C (mm²)","3x25/25"]
["220/38075PVC 70º.C (mm²)","3x50/25"]
["220/380112,5PVC 70º.C (mm²)","3x95/50"]
["220/380150PVC 70º.C (mm²)","3x150/70"]
["220/380225PVC 70º.C (mm²)","2x[3x95/50]"]
["220/380300PVC 70º.C (mm²)","2x[3x150/70]"]
["127/22030EPR/XLPE 90ºC (mm²)","3x16/16"]
["127/22045EPR/XLPE 90ºC (mm²)","3x35/25"]
["127/22075EPR/XLPE 90ºC (mm²)","3x70/35"]
["127/220112,5EPR/XLPE 90ºC (mm²)","3x120/70"]
["127/220150EPR/XLPE 90ºC (mm²)","2x[3x70/35]"]
["127/220225EPR/XLPE 90ºC (mm²)","2x[3x120/70]"]
["127/220300EPR/XLPE 90ºC (mm²)","2x[3x185/95]"]
["220/38030EPR/XLPE 90ºC (mm²)","3x10/10"]
["220/38045EPR/XLPE 90ºC (mm²)","3x16/16"]
["220/38075EPR/XLPE 90ºC (mm²)","3x35/25"]
["220/380112,5EPR/XLPE 90ºC (mm²)","3x70/35"]
["220/380150EPR/XLPE 90ºC (mm²)","3x95/50"]
["220/380225EPR/XLPE 90ºC (mm²)","2x[3x70/35]"]
["220/380300EPR/XLPE 90ºC (mm²)","2x[3x95/50]"]

{"sheet":"Instruções","index":9,"n_rows":79,"n_cols":6,"rows_kept":79,"cut":false,"hidden":true,"merged":[[50,1,62,15],[6,1,10,15],[63,1,77,15],[78,1,97,15],[21,1,49,15],[11,1,20,15],[2,5,2,15],[3,1,3,15],[4,1,4,15],[5,1,5,4],[5,5,5,15]]}
[]
[]
[null,null,null,null,null,"CHECK LIST - ESTUDO DE PROTEÇÃO"]
[]
[null,"Instruções de Preenchimento"]
[]
[null,"Preencher apenas os campos editáveis, marcados em verde e cinza, conforme  exemplos abaixo. Atentar também, para a sequência de preenchimento numeradas ao lado das tabelas."]
[]
[]
[]
[]
[null,"Os campos não editáveis (em branco) possuem lógica/formulas, dessa forma apresentarão resultados após o preencimento dos campos editáveis"]
[]
[]
[]
[]
[]
[]
[]
[]
[]
[null,"Atentar para os comentários inseridos nas células, pois eles esclarecem sobre os resultados e auxiliam no entendimento/preenchimento"]
[]
[]
[]
[]
[]
[]
[]
[]
[]
[]
[]
[]
[]
[]
[]
[]
[]
[]
[]
[]
[]
[]
[]
[]
[]
[]
[]
[]
[null,"As tabelas de check, fazem conferência, de acordo com as regras da DIS-NOR-036, entre os ajustes do cliente (carga) e os ajustes da ELEKTO (fonte). Para seguir, deverão constar como \"OK\". \"Falso\", significa que há erros.  Há casos porém, quando a carga necessitar de ajustes maioes que a fonte, poderá seguir como \"Falso\". Ex. Ajuste da função 51 de 200A (corrente de carga 180) e  o  ajuste da 51 em 180A (fonte)"]
[]
[]
[]
[]
[]
[]
[]
[]
[]
[]
[]
[]
[null,"Para clientes  apenas com carga, ou seja, que não forem minigeração fotovoltaica, com inversores que se conectam a rede através de inversores com anti-ilhamento, não há necessidade de ajustar as funções 59N, 27-0 e 32. Para efeito de otimização, algumas dessas funções são preenchidas de forma automática (de acordo com as regras da norma ND.65)."]
[]
[]
[]
[]
[]
[]
[]
[]
[]
[]
[]
[]
[]
[]
[null,"No final, ser-lhe-á, apresentado um resumo (de preenchimento automático), dos ajustes e dos equipamentos do sistema de proteção. Atentar para alterar o campo cinza, indicando se os ajustes secundários observam o Primário do TC ou o RTC."]

{"sheet":"Formulário","index":10,"n_rows":219,"n_cols":78,"rows_kept":219,"cut":false,"hidden":false,"merged":[[218,22,221,42],[218,43,221,63],[199,22,202,42],[199,43,202,63],[205,22,208,42],[205,43,208,63],[211,22,214,42],[211,43,214,63],[165,43,168,63],[159,43,162,63],[153,43,156,63],[147,43,150,63],[171,43,174,54],[171,55,174,63],[165,22,168,42],[171,22,174,42],[159,22,162,42],[153,22,156,42],[147,22,150,42],[126,2,129,83],[71,18,74,67],[11,77,54,78],[134,22,137,63],[141,22,144,42],[141,43,144,63],[99,30,101,32],[104,68,108,71],[99,53,102,57],[109,56,112,64],[113,56,117,64],[6,2,9,83],[91,2,94,83],[11,7,54,8],[2,2,2,18],[2,19,2,83],[88,57,90,57],[177,22,184,42],[187,22,190,42],[177,43,184,63],[193,22,196,42],[193,43,196,63],[187,43,190,63]]}
[]
[]
[null,null,null,null,null,null,null,null,null,null,null,null,null,null,null,null,null,null,null,"Posto Transformador Urbano Simplificado - Inteligação Elektro "]
[]
[]
[]
[null,null,"PLANTA SITUAÇÃO/LOCALIZAÇÃO"]
[]
[]
[]
[]
[null,null,null,null,null,null,null,"Anotar o nome da Rua",null,null,null,null,null,null,null,null,null,null,null,null,null,null,null,null,null,null,null,null,null,null,null,null,null,null,null,null,null,null,null,null,null,null,null,null,null,null,null,null,null,null,null,null,null,null,null,null,null,null,null,null,null,null,null,null,null,null,null,null,null,null,null,null,null,null,null,null,null,"Anotar o nome da Rua"]
[]
[]
[]
[]
[]
[]
[]
[]
[]
[]
[]
[]
[]
[]
[]
[]
[]
[]
[]
[]
[]
[]
[]
[]
[]
[]
[]
[]
[]
[]
[]
[]
[]
[]
[]
[]
[]
[]
[]
[]
[]
[]
[]
[]
[]
[]
[]
[]
[]
[]
[]
[]
[]
[]
[]
[]
[]
[]
[]
[null,null,null,null,null,null,null,null,null,null,null,null,null,null,null,null,null,null,{"$f":"CONCATENATE('Dados Gerais'!F25,\",\",\" \",\"Nº.\",\" \",'Dados Gerais'!P25)","v":", Nº. "}]
[]
[]
[]
[]
[]
[]
[]
[]
[]
[]
[]
[]
[]
[]
[]
[]
[]
[]
[]
[null,null,"DIAGRAMA UNIFILAR (MT/BT)"]
[]
[]
[]
[]
[]
[]
[]
[null,null,null,null,null,null,null,null,null,null,null,null,null,null,null,null,null,null,null,null,null,null,null,null,null,null,null,null,null,null,{"$f":"AR148","v":""},null,null,null,null,null,null,null,null,null,null,null,null,null,null,null,null,null,null,null,null,null,null,{"$f":"CONCATENATE(AR154,\"A\")","v":"A"}]
[]
[]
[]
[]
[null,null,null,null,null,null,null,null,null,null,null,null,null,null,null,null,null,null,null,null,null,null,null,null,null,null,null,null,null,null,null,null,null,null,null,null,null,null,null,null,null,null,null,null,null,null,null,null,null,null,null,null,null,null,null,null,null,null,null,null,null,null,null,null,null,null,null,null,{"$f":"'Dados de Entrada'!H14","v":0}]
[]
[]
[]
[]
[null,null,null,null,null,null,null,null,null,null,null,null,null,null,null,null,null,null,null,null,null,null,null,null,null,null,null,null,null,null,null,null,null,null,null,null,null,null,null,null,null,null,null,null,null,null,null,null,null,null,null,null,null,null,null,null,{"$f":"AR160","v":{"$error":"#N/A"}}]
[]
[]
[]
[null,null,null,null,null,null,null,null,null,null,null,null,null,null,null,null,null,null,null,null,null,null,null,null,null,null,null,null,null,null,null,null,null,null,null,null,null,null,null,null,null,null,null,null,null,null,null,null,null,null,null,null,null,null,null,null,{"$f":"AR166","v":0}]
[]
[]
[]
[]
[]
[]
[]
[]
[]
[]
[]
[]
[null,null,"DIMENSIONAMENTO AUTOMÁTICO DO RAMAL DE ENTRADA (CONFORME PARÂMETROS INFORMADOS)"]
[]
[]
[]
[]
[]
[]
[]
[null,null,null,null,null,null,null,null,null,null,null,null,null,null,null,null,null,null,null,null,null,null,"RESUMO DAS INSTALAÇÕES"]
[]
[]
[]
[]
[]
[]
[null,null,null,null,null,null,null,null,null,null,null,null,null,null,null,null,null,null,null,null,null,null,"Potência do Transformador:",null,null,null,null,null,null,null,null,null,null,null,null,null,null,null,null,null,null,null,null,{"$f":"CONCATENATE('Dados de Entrada'!H18,\"KVA\",\" - \",'Dados de Entrada'!H10,\"V\")","v":"KVA - V"}]
[]
[]
[]
[]
[]
[null,null,null,null,null,null,null,null,null,null,null,null,null,null,null,null,null,null,null,null,null,null,"Elo Fusível de Proteção:",null,null,null,null,null,null,null,null,null,null,null,null,null,null,null,null,null,null,null,null,{"$f":"IFERROR(VLOOKUP(CONCATENATE('Dados de Entrada'!H10,'Dados de Entrada'!H18,'Dados de Entrada'!H8),Tabela!$A$5:$L$46,4,0),\"\")","v":""}]
[]
[]
[]
[]
[]
[null,null,null,null,null,null,null,null,null,null,null,null,null,null,null,null,null,null,null,null,null,null,"Disjuntor de proteção baixa tensão (BT)",null,null,null,null,null,null,null,null,null,null,null,null,null,null,null,null,null,null,null,null,{"$f":"IFERROR(VLOOKUP(CONCATENATE('Dados de Entrada'!H10,'Dados de Entrada'!H18,'Dados de Entrada'!H8),Tabela!$A$5:$L$46,5,0),\"\")","v":""}]
[]
[]
[]
[]
[]
[null,null,null,null,null,null,null,null,null,null,null,null,null,null,null,null,null,null,null,null,null,null,"Condutor do ramal de entrada aéreo ",null,null,null,null,null,null,null,null,null,null,null,null,null,null,null,null,null,null,null,null,{"$f":"VLOOKUP(CONCATENATE('Dados de Entrada'!H10,'Dados de Entrada'!H18,'Dados de Entrada'!H20),Tabela!$A$143:$B$170,2,0)","v":{"$error":"#N/A"}}]
[]
[]
[]
[]
[]
[null,null,null,null,null,null,null,null,null,null,null,null,null,null,null,null,null,null,null,null,null,null,"Isolação do Condutor",null,null,null,null,null,null,null,null,null,null,null,null,null,null,null,null,null,null,null,null,{"$f":"'Dados de Entrada'!H20","v":0}]
[]
[]
[]
[]
[]
[null,null,null,null,null,null,null,null,null,null,null,null,null,null,null,null,null,null,null,null,null,null,"Eletroduto",null,null,null,null,null,null,null,null,null,null,null,null,null,null,null,null,null,null,null,null,{"$f":"IFERROR(VLOOKUP(CONCATENATE('Dados de Entrada'!H10,'Dados de Entrada'!H18,'Dados de Entrada'!H20,'Dados de Entrada'!H23),Tabela!$A$82:$F$137,6,0),\"\")","v":""},null,null,null,null,null,null,null,null,null,null,null,{"$f":"'Dados de Entrada'!H23","v":0}]
[]
[]
[]
[]
[]
[null,null,null,null,null,null,null,null,null,null,null,null,null,null,null,null,null,null,null,null,null,null,"Ligação do Transformador",null,null,null,null,null,null,null,null,null,null,null,null,null,null,null,null,null,null,null,null,{"$f":"IF('Dados de Entrada'!H8=13.8,\"Primário: Delta - Secundário: Estrela Aterrada\",IF('Dados de Entrada'!H8=13.2,\"Primário: Delta - Secundário: Estrela Aterrada\",IF('Dados de Entrada'!H8=34.5,\"Primário: Estrela - Secundário: Estrela com Neutro Acessível\",\"\")))","v":""}]
[]
[]
[]
[]
[]
[]
[]
[]
[]
[null,null,null,null,null,null,null,null,null,null,null,null,null,null,null,null,null,null,null,null,null,null,"TAPs Primários",null,null,null,null,null,null,null,null,null,null,null,null,null,null,null,null,null,null,null,null,{"$f":"IF('Dados de Entrada'!H8=13.8,\"13,8/13,2/12,6\",IF('Dados de Entrada'!H8=13.2,\"13,2/12,6/11,9\",IF('Dados de Entrada'!H8=34.5,\"34,5/33,0\",\"\")))","v":""}]
[]
[]
[]
[]
[]
[null,null,null,null,null,null,null,null,null,null,null,null,null,null,null,null,null,null,null,null,null,null,"Classe de Tensão",null,null,null,null,null,null,null,null,null,null,null,null,null,null,null,null,null,null,null,null,{"$f":"IF('Dados de Entrada'!H8=13.8,\"15 KV\",IF('Dados de Entrada'!H8=13.2,\"15 KV\",IF('Dados de Entrada'!H8=34.5,\"36,2\",\"\")))","v":""}]
[]
[]
[]
[]
[]
[null,null,null,null,null,null,null,null,null,null,null,null,null,null,null,null,null,null,null,null,null,null,"Altura do Poste",null,null,null,null,null,null,null,null,null,null,null,null,null,null,null,null,null,null,null,null,{"$f":"'Dados de Entrada'!H25","v":0}]
[]
[]
[]
[]
[]
[null,null,null,null,null,null,null,null,null,null,null,null,null,null,null,null,null,null,null,null,null,null,"Resistência Mecânica do poste (daN)",null,null,null,null,null,null,null,null,null,null,null,null,null,null,null,null,null,null,null,null,{"$f":"IFERROR(VLOOKUP(CONCATENATE('Dados de Entrada'!H8,'Dados de Entrada'!H18,'Dados de Entrada'!H27),Tabela!$K$52:$L$93,2,0),\"\")","v":""}]
[]
[]
[]
[]
[]
[null,null,null,null,null,null,null,null,null,null,null,null,null,null,null,null,null,null,null,null,null,null,"Tipo",null,null,null,null,null,null,null,null,null,null,null,null,null,null,null,null,null,null,null,null,{"$f":"'Dados de Entrada'!H27","v":0}]
[]
[]
[]
[]
[]
[]
[null,null,null,null,null,null,null,null,null,null,null,null,null,null,null,null,null,null,null,null,null,null,"Detalhes Construtivos (Posto Transformador)",null,null,null,null,null,null,null,null,null,null,null,null,null,null,null,null,null,null,null,null,{"$f":"IF('Dados de Entrada'!H29=\"Cruzará a rua\",\"1\",IF('Dados de Entrada'!H29=\"Cruzará somente a calçada\",\"2\",IF('Dados de Entrada'!H29=\"Não há rede primária ou secundária no local\",\"3\",\"\")))","v":""}]

{"sheet":"Projeto","index":11,"n_rows":109,"n_cols":115,"rows_kept":109,"cut":false,"hidden":true,"merged":[[88,57,90,57],[96,50,102,64],[108,31,111,81],[38,18,84,19],[38,95,84,96],[45,53,48,60],[51,53,60,60],[66,49,68,56],[71,39,84,45],[71,69,84,74],[74,48,79,54],[74,59,79,65]]}
[]
[]
[]
[]
[]
[]
[]
[]
[]
[]
[]
[]
[]
[]
[]
[]
[]
[]
[]
[]
[]
[]
[]
[]
[]
[]
[]
[]
[]
[]
[]
[]
[]
[]
[]
[]
[]
[]
[null,null,null,null,null,null,null,null,null,null,null,null,null,null,null,null,null,null,"RuaClóvis",null,null,null,null,null,null,null,null,null,null,null,null,null,null,null,null,null,null,null,null,null,null,null,null,null,null,null,null,null,null,null,null,null,null,null,null,null,null,null,null,null,null,null,null,null,null,null,null,null,null,null,null,null,null,null,null,null,null,null,null,null,null,null,null,null,null,null,null,null,null,null,null,null,null,null,null,"Rua Padre Anchieta"]
[]
[]
[]
[]
[]
[]
[null,null,null,null,null,null,null,null,null,null,null,null,null,null,null,null,null,null,null,null,null,null,null,null,null,null,null,null,null,null,null,null,null,null,null,null,null,null,null,null,null,null,null,null,null,null,null,null,null,null,null,null,null,"Edificação"]
[]
[]
[]
[]
[]
[null,null,null,null,null,null,null,null,null,null,null,null,null,null,null,null,null,null,null,null,null,null,null,null,null,null,null,null,null,null,null,null,null,null,null,null,null,null,null,null,null,null,null,null,null,null,null,null,null,null,null,null,null,"Empresa de Projetos"]
[]
[]
[]
[]
[]
[]
[]
[]
[]
[]
[]
[]
[]
[]
[null,null,null,null,null,null,null,null,null,null,null,null,null,null,null,null,null,null,null,null,null,null,null,null,null,null,null,null,null,null,null,null,null,null,null,null,null,null,null,null,null,null,null,null,null,null,null,null,null,10]
[]
[]
[]
[]
[null,null,null,null,null,null,null,null,null,null,null,null,null,null,null,null,null,null,null,null,null,null,null,null,null,null,null,null,null,null,null,null,null,null,null,null,null,null,null,"Anotar nº. da Unidade Cosumidora e medidor do vizinho",null,null,null,null,null,null,null,null,null,null,null,null,null,null,null,null,null,null,null,null,null,null,null,null,null,null,null,null,null,"Anotar nº. da Unidade Cosumidora e medidor do vizinho"]
[]
[]
[null,null,null,null,null,null,null,null,null,null,null,null,null,null,null,null,null,null,null,null,null,null,null,null,null,null,null,null,null,null,null,null,null,null,null,null,null,null,null,null,null,null,null,null,null,null,null,null,5,null,null,null,null,null,null,null,null,null,null,15]
[]
[]
[]
[]
[]
[]
[]
[]
[]
[]
[]
[]
[]
[null,null,null,null,null,null,null,null,null,null,null,null,null,null,null,null,null,null,null,null,null,null,null,null,null,null,null,null,null,null,null,null,null,null,null,null,null,null,null,null,null,null,null,null,null,null,null,null,null,null,null,null,null,null,null,null,null,1]
[]
[]
[]
[]
[]
[]
[]
[null,null,null,null,null,null,null,null,null,null,null,null,null,null,null,null,null,null,null,null,null,null,null,null,null,null,null,null,null,null,null,null,null,null,null,null,null,null,null,null,null,null,null,null,null,null,null,null,null,null,"Interligação pela ELEKTRO"]
[]
[]
[]
[null,null,null,null,null,null,null,null,null,null,null,null,null,null,null,null,null,null,null,null,null,null,null,null,null,null,null,null,null,null,null,null,null,null,null,null,null,null,null,null,null,null,null,null,null,null,null,null,null,null,null,null,null,null,null,null,null,null,null,null,null,null,null,null,null,null,null,null,null,null,null,null,null,null,null,null,null,null,null,null,null,null,null,null,null,null,null,null,null,null,null,null,null,null,null,null,null,null,null,null,null,null,null,null,null,null,null,null,null,null,null,null,null,null,1]
[null,null,null,null,null,null,null,null,null,null,null,null,null,null,null,null,null,null,null,null,null,null,null,null,null,null,null,null,null,null,null,null,null,null,null,null,null,null,null,null,null,null,null,null,null,null,null,null,null,null,null,null,null,null,null,null,null,null,null,null,null,null,null,null,null,null,null,null,null,null,null,null,null,null,null,null,null,null,null,null,null,null,null,null,null,null,null,null,null,null,null,null,null,null,null,null,null,null,null,null,null,null,null,null,null,null,null,null,null,null,null,null,null,null,2]
[]
[]
[]
[]
[]
[]
[null,null,null,null,null,null,null,null,null,null,null,null,null,null,null,null,null,null,null,null,null,null,null,null,null,null,null,null,null,null,null,{"$f":"_xlfn.CONCAT('Dados Gerais'!F25:N25,\",\",\" \",\"N.\",\" \",'Dados Gerais'!P25)","v":", N. "}]